lending/lending_fUSD_20241120
["ID","MTS","AMOUNT","RATE_DAILY","PERIOD"]
[342809516,1732143175677,-1158.3,0.00059177,120]
[342809517,1732143175687,-500.0,0.00059177,120]
[342809518,1732143175696,-500.0,0.00059177,120]
[342809519,1732143175706,-500.0,0.00059177,120]
[342809520,1732143175716,-1261.01,0.00059177,120]
[342809521,1732143175728,-500.0,0.00059177,120]
[342809522,1732143175738,-500.0,0.00059177,120]
[342809523,1732143175748,-500.0,0.00059177,120]
[342809524,1732143175757,-257.7886152,0.00059177,120]
[342809525,1732143175767,-500.0,0.00059177,120]
[342809526,1732143175776,-500.0,0.00059177,7]
[342809527,1732143175786,-500.0,0.00059177,120]
[342809528,1732143175796,-500.0,0.00059177,120]
[342809529,1732143175806,-598.93,0.00059177,120]
[342809530,1732143175816,-500.0,0.00059177,120]
[342809531,1732143175826,-500.0,0.00059177,60]
[342809532,1732143175836,-500.0,0.00059177,120]
[342809533,1732143175846,-500.0,0.00059177,120]
[342809534,1732143175855,-502.00399764,0.00059177,120]
[342809535,1732143175865,-1006.34,0.00059177,120]
[342809536,1732143175875,-500.0,0.00059177,120]
[342809537,1732143175884,-500.0,0.00059177,120]
[342809538,1732143175894,-503.91257598,0.00059177,120]
[342809539,1732143175904,-504.43,0.00059177,120]
[342809540,1732143175918,-500.0,0.00059177,120]
[342809541,1732143175928,-500.0,0.00059177,120]
[342809542,1732143175937,-500.0,0.00059177,120]
[342809543,1732143175947,-500.0,0.00059177,120]
[342809544,1732143175956,-500.0,0.00059177,120]
[342809545,1732143175967,-500.0,0.00059177,120]
[342809546,1732143175978,-500.0,0.00059177,120]
[342809547,1732143175990,-500.0,0.00059177,120]
[342809548,1732143176000,-500.0,0.00059177,120]
[342809549,1732143176010,-1283.37,0.00059177,120]
[342809550,1732143176020,-500.0,0.00059177,120]
[342809551,1732143176031,-701.26,0.00059177,120]
[342809552,1732143176041,-500.0,0.00059177,120]
[342809553,1732143176050,-1332.5,0.00059177,120]
[342809554,1732143176060,-761.37,0.00059177,120]
[342809555,1732143176070,-500.0,0.00059177,120]
[342809556,1732143176080,-673.21,0.00059177,120]
[342809557,1732143176090,-570.71,0.00059177,120]
[342809558,1732143176100,-500.0,0.00059177,120]
[342809559,1732143176110,-500.0,0.00059177,120]
[342809560,1732143176120,-500.0,0.00059177,2]
[342809561,1732143176131,-688.18,0.00059177,120]
[342809562,1732143176141,-504.0185616,0.00059177,120]
[342809563,1732143176151,-500.0,0.00059177,120]
[342809564,1732143176161,-500.0,0.00059177,120]
[342809565,1732143176171,-500.0,0.00059177,120]
[342809566,1732143176181,-874.95,0.00059177,120]
[342809567,1732143176192,-705.26,0.00059177,120]
[342809568,1732143176208,-500.0,0.00059177,120]
[342809569,1732143176218,-862.02,0.00059177,120]
[342809570,1732143176230,-500.0,0.00059177,120]
[342809571,1732143176241,-710.13,0.00059177,120]
[342809572,1732143176251,-500.0,0.00059177,120]
[342809573,1732143176264,-575.87,0.00059177,120]
[342809574,1732143176275,-500.0,0.00059177,120]
[342809575,1732143176284,-533.41,0.00059177,120]
[342809576,1732143176295,-500.0,0.00059177,120]
[342809577,1732143176305,-1044.98,0.00059177,120]
[342809578,1732143176315,-500.0,0.00059177,120]
[342809579,1732143176325,-500.0,0.00059177,120]
[342809580,1732143176336,-500.0,0.00059177,120]
[342809581,1732143176347,-598.39,0.00059177,120]
[342809582,1732143176357,-500.0,0.00059177,120]
[342809583,1732143176367,-500.0,0.00059177,120]
[342809584,1732143176377,-517.17452165,0.00059177,120]
[342809585,1732143176387,-500.0,0.00059177,120]
[342809586,1732143176397,-876.64,0.00059177,120]
[342809587,1732143176408,-500.0,0.00059177,120]
[342809588,1732143176419,-500.0,0.00059177,120]
[342809589,1732143176429,-189.86705183,0.00059177,120]
[342809590,1732143176439,-500.0,0.00059177,120]
[342809591,1732143176450,-500.0,0.00059177,120]
[342809592,1732143176460,-500.72122023,0.00059177,120]
[342809593,1732143176470,-853.3,0.00059177,120]
[342809594,1732143176481,-500.0,0.00059177,120]
[342809595,1732143176491,-929.3,0.00059177,120]
[342809596,1732143176501,-500.0,0.00059177,120]
[342809597,1732143176511,-500.0,0.00059177,120]
[342809598,1732143176520,-839.52,0.00059177,120]
[342809599,1732143176530,-500.0,0.00059177,120]
[342809600,1732143176539,-500.0,0.00059177,120]
[342809601,1732143176549,-818.09,0.00059177,60]
[342809602,1732143176559,-500.0,0.00059177,120]
[342809603,1732143176568,-932.52,0.00059177,120]
[342809604,1732143176578,-500.0,0.00059177,120]
[342809605,1732143176587,-500.0,0.00059177,120]
[342809606,1732143176597,-500.0,0.00059177,120]
[342809607,1732143176607,-500.0,0.00059177,120]
[342809608,1732143176927,-500.0,0.00059177,120]
[342809609,1732143176937,-500.0,0.00059177,120]
[342809610,1732143176947,-500.0,0.00059177,120]
[342809611,1732143176957,-500.0,0.00059177,120]
[342809612,1732143176967,-500.0,0.00059177,120]
[342809613,1732143176978,-500.0,0.00059177,120]
[342809614,1732143176989,-528.98,0.00059177,120]
[342809615,1732143176999,-500.0,0.00059177,120]
[342809616,1732143177008,-694.38,0.00059177,120]
[342809617,1732143177018,-512.65,0.00059177,120]
[342809618,1732143177028,-500.0,0.00059177,120]
[342809619,1732143177037,-500.0,0.00059177,120]
[342809620,1732143177047,-1167.24,0.00059177,120]
[342809621,1732143177056,-577.22,0.00059177,120]
[342809622,1732143177066,-786.11,0.00059177,120]
[342809623,1732143177076,-819.5,0.00059177,120]
[342809624,1732143177086,-500.0,0.00059177,120]
[342809625,1732143177095,-500.0,0.00059177,120]
[342809626,1732143177105,-500.0,0.00059177,120]
[342809627,1732143177114,-769.28,0.00059177,120]
[342809628,1732143177124,-500.0,0.00059177,120]
[342809629,1732143177134,-500.0,0.00059177,120]
[342809630,1732143177143,-500.0,0.00059177,120]
[342809631,1732143177152,-598.71,0.00059177,120]
[342809632,1732143177162,-500.0,0.00059177,120]
[342809633,1732143177172,-500.0,0.00059177,120]
[342809634,1732143177181,-1024.27,0.00059177,120]
[342809635,1732143177191,-583.69,0.00059177,120]
[342809636,1732143177201,-1242.02,0.00059177,120]
[342809637,1732143177211,-1011.03,0.00059177,120]
[342809638,1732143177220,-500.0,0.00059177,120]
[342809639,1732143177230,-500.0,0.00059177,120]
[342809640,1732143177240,-500.0,0.00059177,120]
[342809641,1732143177250,-785.27,0.00059177,120]
[342809642,1732143177260,-1740.08,0.00059177,120]
[342809643,1732143177270,-500.0,0.00059177,120]
[342809644,1732143177280,-500.0,0.00059177,120]
[342809645,1732143177290,-500.0,0.00059177,120]
[342809646,1732143177300,-500.0,0.00059177,120]
[342809647,1732143177310,-703.85,0.00059177,120]
[342809648,1732143177320,-500.0,0.00059177,120]
[342809649,1732143177329,-500.0,0.00059177,120]
[342809650,1732143177339,-628.65,0.00059177,120]
[342809651,1732143177349,-500.0,0.00059177,120]
[342809652,1732143177358,-500.0,0.00059177,120]
[342809653,1732143177368,-500.0,0.00059177,120]
[342809654,1732143177378,-500.0,0.00059177,120]
[342809655,1732143177387,-799.65,0.00059177,120]
[342809656,1732143177396,-500.0,0.00059177,120]
[342809657,1732143177406,-500.0,0.00059177,120]
[342809658,1732143177415,-500.0,0.00059177,120]
[342809659,1732143177425,-821.37,0.00059177,120]
[342809660,1732143177434,-500.0,0.00059177,120]
[342809661,1732143177444,-500.0,0.00059177,120]
[342809662,1732143177453,-1270.46,0.00059177,120]
[342809663,1732143177462,-500.0,0.00059177,120]
[342809664,1732143177473,-500.0,0.00059177,120]
[342809665,1732143177483,-500.0,0.00059177,120]
[342809666,1732143177492,-500.0,0.00059177,120]
[342809667,1732143177503,-500.0,0.00059177,120]
[342809668,1732143177513,-1026.3,0.00059177,120]
[342809669,1732143177522,-654.97,0.00059177,120]
[342809670,1732143177532,-228.273339,0.00059177,120]
[342809671,1732143177544,-228.273339,0.00059177,120]
[342809672,1732143177555,-1162.69,0.00059177,120]
[342809673,1732143177566,-1475.7,0.00059177,120]
[342809674,1732143177575,-151.0,0.00059177,120]
[342809675,1732143177585,-244.673666,0.00059177,120]
[342809676,1732143177596,-500.0,0.00059177,120]
[342809677,1732143177608,-244.673666,0.00059177,120]
[342809678,1732143177618,-534.81,0.00059177,120]
[342809679,1732143177628,-500.0,0.00059177,120]
[342809680,1732143177640,-500.0,0.00059177,120]
[342809681,1732143177651,-151.0,0.00059177,120]
[342809682,1732143177661,-516.99350448,0.00059177,120]
[342809683,1732143177671,-536.1,0.00059177,120]
[342809684,1732143177680,-1309.27,0.00059177,120]
[342809685,1732143177690,-151.0,0.00059177,120]
[342809686,1732143177699,-556.25,0.00059177,120]
[342809687,1732143177708,-188.0,0.00059177,7]
[342809688,1732143177719,-500.0,0.00059177,120]
[342809689,1732143177729,-500.0,0.00059177,120]
[342809690,1732143177739,-500.0,0.00059177,120]
[342809691,1732143177748,-500.0,0.00059177,120]
[342809692,1732143177758,-500.0,0.00059177,120]
[342809693,1732143177768,-1229.98,0.00059177,120]
[342809694,1732143177777,-500.0,0.00059177,120]
[342809695,1732143177787,-439.698091,0.00059177,120]
[342809696,1732143177796,-439.698091,0.00059177,120]
[342809697,1732143177806,-439.698091,0.00059177,120]
[342809698,1732143177815,-439.698091,0.00059177,120]
[342809699,1732143177825,-500.0,0.00059177,120]
[342809700,1732143177834,-439.698091,0.00059177,120]
[342809701,1732143177844,-439.698091,0.00059177,120]
[342809702,1732143177853,-439.698091,0.00059177,120]
[342809703,1732143177863,-439.6981,0.00059177,120]
[342809704,1732143177872,-500.0,0.00059177,120]
[342809705,1732143177882,-500.0,0.00059177,120]
[342809706,1732143177891,-151.0,0.00059177,120]
[342809707,1732143177901,-151.0,0.00059177,120]
[342809708,1732143177912,-150.0,0.00059177,120]
[342809709,1732143177924,-500.0,0.00059177,120]
[342809710,1732143177933,-5000.0,0.00059177,120]
[342809711,1732143177943,-500.0,0.00059177,120]
[342809712,1732143177954,-872.55,0.00059177,120]
[342809713,1732143177965,-630.9757273,0.00059177,120]
[342809714,1732143177975,-656.67,0.00059177,120]
[342809715,1732143177986,-999.09,0.00059177,120]
[342809716,1732143177998,-1411.12131,0.00059177,120]
[342809717,1732143178009,-1411.12131,0.00059177,120]
[342809718,1732143178019,-1411.12131,0.00059177,120]
[342809719,1732143178028,-1411.12131,0.00059177,120]
[342809720,1732143178038,-1411.12131,0.00059177,120]
[342809721,1732143178048,-1411.12131,0.00059177,120]
[342809722,1732143178057,-1411.12131,0.00059177,120]
[342809723,1732143178067,-1411.121305,0.00059177,120]
[342809724,1732143178077,-569.99,0.00059177,120]
[342809725,1732143178086,-500.0,0.00059177,120]
[342809726,1732143178096,-709.28,0.00059177,120]
[342809727,1732143178106,-1308.091702,0.00059177,120]
[342809728,1732143178115,-1308.091702,0.00059177,120]
[342809729,1732143178125,-1308.091702,0.00059177,120]
[342809730,1732143178135,-1308.091702,0.00059177,120]
[342809731,1732143178145,-1308.091702,0.00059177,120]
[342809732,1732143178155,-1308.091702,0.00059177,120]
[342809733,1732143178165,-1308.091702,0.00059177,120]
[342809734,1732143178175,-1308.091704,0.00059177,120]
[342809735,1732143178185,-569.41,0.00059177,120]
[342809736,1732143178195,-1489.09,0.00059177,120]
[342809737,1732143178205,-500.0,0.00059177,120]
[342809738,1732143178215,-1118.01,0.00059177,120]
[342809739,1732143178227,-500.0,0.00059177,120]
[342809740,1732143178236,-500.0,0.00059177,120]
[342809741,1732143178246,-562.17,0.00059177,120]
[342809742,1732143178256,-500.0,0.00059177,120]
[342809743,1732143178265,-516.5,0.00059177,120]
[342809744,1732143178275,-1042.13,0.00059177,120]
[342809745,1732143178284,-500.0,0.00059177,120]
[342809746,1732143178293,-733.47,0.00059177,120]
[342809747,1732143178303,-1033.25,0.00059177,120]
[342809748,1732143178315,-500.0,0.00059177,120]
[342809749,1732143178325,-1793.12,0.00059177,120]
[342809750,1732143178334,-861.7,0.00059177,120]
[342809751,1732143178344,-576.17,0.00059177,120]
[342809752,1732143178353,-500.0,0.00059177,120]
[342809753,1732143178363,-500.0,0.00059177,120]
[342809754,1732143178372,-500.0,0.00059177,120]
[342809755,1732143178382,-654.65,0.00059177,120]
[342809756,1732143178392,-500.0,0.00059177,120]
[342809757,1732143178402,-500.0,0.00059177,120]
[342809758,1732143178413,-557.25,0.00059177,120]
[342809759,1732143178424,-500.0,0.00059177,120]
[342809760,1732143178433,-500.0,0.00059177,120]
[342809761,1732143178443,-988.11,0.00059177,120]
[342809762,1732143178453,-1076.47,0.00059177,120]
[342809763,1732143178463,-500.0,0.00059177,120]
[342809764,1732143178473,-500.0,0.00059177,120]
[342809765,1732143178483,-1122.59,0.00059177,120]
[342809766,1732143178494,-500.0,0.00059178,120]
[342809767,1732143178503,-500.0,0.00059178,120]
[342809768,1732143178513,-949.28,0.00059178,120]
[342809769,1732143178524,-588.18,0.00059178,120]
[342809770,1732143178534,-216.87,0.00059178,7]
[342809771,1732143178544,-1647.84,0.00059178,120]
[342809772,1732143178555,-500.0,0.00059178,120]
[342809773,1732143178565,-672.22,0.00059178,120]
[342809774,1732143178575,-901.77,0.00059178,120]
[342809775,1732143178584,-749.97,0.00059178,120]
[342809776,1732143178594,-500.0,0.00059178,120]
[342809777,1732143178604,-1584.28,0.00059178,120]
[342809778,1732143178614,-698.15,0.00059178,120]
[342809779,1732143178623,-500.0,0.00059178,120]
[342809780,1732143178633,-500.0,0.00059178,120]
[342809781,1732143178643,-550.21,0.00059178,120]
[342809782,1732143178653,-838.1,0.00059178,120]
[342809783,1732143178667,-500.0,0.00059178,120]
[342809784,1732143178677,-678.26,0.00059178,120]
[342809785,1732143178687,-528.71,0.00059178,120]
[342809786,1732143178697,-577.89,0.00059178,120]
[342809787,1732143178706,-1058.89,0.00059178,120]
[342809788,1732143178715,-500.0,0.00059178,120]
[342809789,1732143178726,-516.05,0.00059178,120]
[342809790,1732143178736,-500.0,0.00059178,120]
[342809791,1732143178745,-1582.8,0.00059178,120]
[342809792,1732143178755,-512.91,0.00059178,120]
[342809793,1732143178764,-910.7,0.00059178,120]
[342809794,1732143178774,-500.0,0.00059178,120]
[342809795,1732143178783,-686.07,0.00059178,120]
[342809796,1732143178793,-718.84,0.00059178,120]
[342809797,1732143178802,-500.0,0.00059178,120]
[342809798,1732143178812,-566.64,0.00059178,120]
[342809799,1732143178822,-581.13,0.00059178,120]
[342809800,1732143178832,-558.19,0.00059178,120]
[342809801,1732143178841,-1275.31,0.00059178,120]
[342809802,1732143178851,-646.55,0.00059178,120]
[342809803,1732143178861,-500.0,0.00059178,120]
[342809804,1732143178871,-889.52,0.00059178,120]
[342809805,1732143178880,-1844.67,0.00059178,120]
[342809806,1732143178890,-1345.16,0.00059178,120]
[342809807,1732143178900,-1354.36,0.00059178,120]
[342809808,1732143178909,-1126.54,0.00059178,120]
[342809809,1732143178923,-810.54,0.00059178,120]
[342809810,1732143178933,-1630.49,0.00059178,120]
[342809811,1732143178943,-1539.37,0.00059178,120]
[342809812,1732143178952,-1061.11,0.00059178,120]
[342809813,1732143178963,-616.53,0.00059178,120]
[342809814,1732143178973,-1163.7,0.00059178,120]
[342809815,1732143178983,-1697.48,0.00059178,120]
[342809816,1732143178994,-768.83,0.00059178,120]
[342809817,1732143179004,-1494.04,0.00059178,120]
[342809818,1732143179013,-583.76,0.00059178,120]
[342809819,1732143179023,-500.0,0.00059178,120]
[342809820,1732143179032,-1417.12,0.00059178,120]
[342809821,1732143179042,-514.86,0.00059178,120]
[342809822,1732143179051,-580.28,0.00059178,120]
[342809823,1732143179062,-625.85,0.00059178,120]
[342809824,1732143179072,-500.0,0.00059178,120]
[342809825,1732143179082,-1642.42,0.00059178,7]
[342809826,1732143179093,-835.63,0.00059178,120]
[342809827,1732143179103,-1168.69,0.00059178,120]
[342809828,1732143179113,-500.0,0.00059178,120]
[342809829,1732143179123,-785.67,0.00059178,120]
[342809830,1732143179134,-526.48,0.00059178,120]
[342809831,1732143179143,-1791.8,0.00059178,120]
[342809832,1732143179152,-500.0,0.00059178,120]
[342809833,1732143179162,-764.29,0.00059178,120]
[342809834,1732143179171,-937.69,0.00059178,120]
[342809835,1732143179181,-830.14,0.00059178,120]
[342809836,1732143179193,-500.0,0.00059178,58]
[342809837,1732143179202,-1926.82,0.00059178,120]
[342809838,1732143179213,-151.0,0.00059178,120]
[342809839,1732143179223,-513.97,0.00059178,120]
[342809840,1732143179233,-648.3398246,0.00059178,120]
[342809841,1732143179242,-1258.94,0.00059178,120]
[342809842,1732143179252,-615.91,0.00059178,120]
[342809843,1732143179261,-739.53,0.00059178,120]
[342809844,1732143179271,-2364.09,0.00059178,120]
[342809845,1732143179281,-1516.8,0.00059178,120]
[342809846,1732143179290,-644.03,0.00059178,120]
[342809847,1732143179300,-1222.69,0.00059178,120]
[342809848,1732143179429,-2792.61,0.00059178,120]
[342809849,1732143179439,-689.07,0.00059178,120]
[342809850,1732143179448,-151.0,0.00059178,120]
[342809851,1732143179457,-598.66,0.00059178,120]
[342809852,1732143179467,-696.8,0.00059178,120]
[342809853,1732143179478,-517.71,0.00059178,120]
[342809854,1732143179488,-670.6,0.00059178,120]
[342809855,1732143179497,-1622.41,0.00059178,120]
[342809856,1732143179506,-732.47,0.00059178,120]
[342809857,1732143179516,-500.0,0.00059178,120]
[342809858,1732143179526,-500.0,0.00059178,120]
[342809859,1732143179535,-3752.95,0.00059178,120]
[342809860,1732143179544,-694.86,0.00059178,120]
[342809861,1732143179555,-527.72,0.00059178,120]
[342809862,1732143179564,-2754.45,0.00059178,120]
[342809863,1732143179574,-500.0,0.00059178,120]
[342809864,1732143179583,-750.37,0.00059178,120]
[342809865,1732143179593,-1552.42,0.00059178,120]
[342809866,1732143179602,-777.0,0.00059178,120]
[342809867,1732143179611,-586.88,0.00059178,120]
[342809868,1732143179620,-546.79,0.00059178,120]
[342809869,1732143179629,-1410.35,0.00059178,120]
[342809870,1732143179638,-622.81,0.00059178,120]
[342809871,1732143179647,-1078.42,0.00059178,120]
[342809872,1732143179656,-2348.91,0.00059178,120]
[342809873,1732143179666,-1803.88,0.00059178,120]
[342809874,1732143179675,-875.42,0.00059178,120]
[342809875,1732143179684,-908.45,0.00059178,120]
[342809876,1732143179694,-643.69,0.00059178,120]
[342809877,1732143179703,-1745.98,0.00059178,120]
[342809878,1732143179712,-659.6,0.00059178,120]
[342809879,1732143179724,-1212.54,0.00059178,120]
[342809880,1732143179733,-500.0,0.00059178,120]
[342809881,1732143179742,-2042.25,0.00059178,120]
[342809882,1732143179751,-828.06,0.00059178,120]
[342809883,1732143179760,-646.63,0.00059178,120]
[342809884,1732143179769,-806.31,0.00059178,120]
[342809885,1732143179779,-1287.88,0.00059178,120]
[342809886,1732143179788,-1410.77,0.00059178,120]
[342809887,1732143179796,-623.91,0.00059178,120]
[342809888,1732143179806,-1000.52,0.00059178,120]
[342809889,1732143179815,-766.21,0.00059178,120]
[342809890,1732143179824,-500.0,0.00059178,120]
[342809891,1732143179833,-1013.49,0.00059178,120]
[342809892,1732143179843,-811.56,0.00059178,120]
[342809893,1732143179852,-500.0,0.00059178,120]
[342809894,1732143179862,-500.0,0.00059178,120]
[342809895,1732143179871,-3361.2,0.00059178,120]
[342809896,1732143179881,-1185.33,0.00059178,120]
[342809897,1732143179891,-633.81,0.00059178,120]
[342809898,1732143179901,-838.48,0.00059178,120]
[342809899,1732143179911,-1382.6,0.00059178,120]
[342809900,1732143179924,-2198.56,0.00059178,120]
[342809901,1732143179934,-500.0,0.00059178,120]
[342809902,1732143179944,-500.0,0.00059178,120]
[342809903,1732143179954,-658.16,0.00059178,120]
[342809904,1732143179963,-581.06,0.00059178,120]
[342809905,1732143179976,-500.0,0.00059178,120]
[342809906,1732143179988,-843.03,0.00059178,120]
[342809907,1732143179998,-665.72,0.00059178,120]
[342809908,1732143180008,-789.82,0.00059178,120]
[342809909,1732143180018,-660.24,0.00059178,120]
[342809910,1732143180027,-500.0,0.00059178,120]
[342809911,1732143180038,-504.35,0.00059178,120]
[342809912,1732143180047,-2411.2,0.00059178,120]
[342809913,1732143180057,-773.4,0.00059178,120]
[342809914,1732143180067,-3997.56,0.00059178,120]
[342809915,1732143180077,-500.0,0.00059178,120]
[342809916,1732143180088,-559.66,0.00059178,120]
[342809917,1732143180098,-1755.1,0.00059178,120]
[342809918,1732143180107,-1021.42,0.00059178,120]
[342809919,1732143180116,-968.59,0.00059178,120]
[342809920,1732143180127,-747.74,0.00059178,120]
[342809921,1732143180136,-151.0,0.00059178,120]
[342809922,1732143180145,-296.111706,0.00059178,120]
[342809923,1732143180155,-650.26,0.00059178,120]
[342809924,1732143180165,-552.66,0.00059178,120]
[342809925,1732143180175,-528.53,0.00059178,120]
[342809926,1732143180184,-661.12,0.00059178,120]
[342809927,1732143180194,-4504.33,0.00059178,120]
[342809928,1732143180204,-1414.7,0.00059178,120]
[342809929,1732143180213,-500.0,0.00059178,120]
[342809930,1732143180224,-1839.1,0.00059178,20]
[342809931,1732143180234,-226.403162,0.00059178,120]
[342809932,1732143180243,-226.403162,0.00059178,120]
[342809933,1732143180252,-226.403162,0.00059178,120]
[342809934,1732143180262,-226.403162,0.00059178,120]
[342809935,1732143180272,-600.15,0.00059178,120]
[342809936,1732143180282,-639.71,0.00059178,120]
[342809937,1732143180291,-226.403162,0.00059178,120]
[342809938,1732143180300,-226.403162,0.00059178,120]
[342809939,1732143180309,-226.403162,0.00059178,120]
[342809940,1732143180318,-226.40316,0.00059178,120]
[342809941,1732143180327,-500.0,0.00059178,120]
[342809942,1732143180335,-1685.02,0.00059178,120]
[342809943,1732143180344,-500.0,0.00059178,120]
[342809944,1732143180355,-643.92,0.00059178,120]
[342809945,1732143180363,-500.0,0.00059178,120]
[342809946,1732143180372,-503.41,0.00059178,120]
[342809947,1732143180381,-1838.85,0.00059178,120]
[342809948,1732143180390,-777.36,0.00059178,120]
[342809949,1732143180399,-1088.52,0.00059178,120]
[342809950,1732143180408,-3963.88,0.00059178,120]
[342809951,1732143180418,-510.62452783,0.00059178,120]
[342809952,1732143180428,-508.93,0.00059178,120]
[342809953,1732143180438,-500.0,0.00059178,120]
[342809954,1732143180447,-296.00059194,0.00059178,120]
[342809955,1732143180457,-522.18,0.00059178,120]
[342809956,1732143180466,-674.72,0.00059178,120]
[342809957,1732143180477,-1573.1,0.00059178,120]
[342809958,1732143180487,-321.9006068,0.00059178,120]
[342809959,1732143180496,-1344.45,0.00059178,120]
[342809960,1732143180506,-695.34,0.00059178,120]
[342809961,1732143180516,-993.23,0.00059178,120]
[342809962,1732143180526,-5030.76,0.00059178,120]
[342809963,1732143180536,-530.39,0.00059178,120]
[342809964,1732143180546,-1007.71,0.00059178,120]
[342809965,1732143180556,-1508.05,0.00059178,120]
[342809966,1732143180565,-845.57,0.00059178,120]
[342809967,1732143180575,-1000.0,0.00059178,30]
[342809968,1732143180585,-500.0,0.00059178,120]
[342809969,1732143180594,-1949.27,0.00059178,120]
[342809970,1732143180603,-635.4,0.00059178,120]
[342809971,1732143180614,-3671.8,0.00059178,120]
[342809972,1732143180626,-873.15,0.00059178,120]
[342809973,1732143180636,-1275.78,0.00059178,120]
[342809974,1732143180645,-500.0,0.00059178,120]
[342809975,1732143180654,-1300.6,0.00059178,120]
[342809976,1732143180664,-1078.43,0.00059178,120]
[342809977,1732143180674,-729.83,0.00059178,120]
[342809978,1732143180683,-1015.57,0.00059178,120]
[342809979,1732143180693,-562.04,0.00059178,120]
[342809980,1732143180702,-2222.66,0.00059178,120]
[342809981,1732143180712,-2596.1,0.00059178,120]
[342809982,1732143180722,-1080.64,0.00059178,120]
[342809983,1732143180732,-852.14,0.00059178,120]
[342809984,1732143180741,-569.32,0.00059178,120]
[342809985,1732143180751,-509.24,0.00059178,120]
[342809986,1732143180760,-500.0,0.00059178,120]
[342809987,1732143180770,-700.0,0.00059178,120]
[342809988,1732143180780,-928.5,0.00059178,120]
[342809989,1732143180790,-1806.6,0.00059178,120]
[342809990,1732143180799,-500.0,0.00059178,120]
[342809991,1732143180808,-1129.79,0.00059178,120]
[342809992,1732143180818,-500.0,0.00059178,120]
[342809993,1732143180828,-2425.19,0.00059178,120]
[342809994,1732143180837,-625.0,0.00059178,120]
[342809995,1732143180846,-500.0,0.00059178,120]
[342809996,1732143180855,-1018.93,0.00059178,120]
[342809997,1732143180865,-2073.72,0.00059178,120]
[342809998,1732143180874,-1011.93,0.00059178,120]
[342809999,1732143180884,-1257.41,0.00059178,120]
[342810000,1732143180895,-1328.54,0.00059178,120]
[342810001,1732143180905,-893.2,0.00059178,120]
[342810002,1732143180918,-878.56,0.00059178,120]
[342810003,1732143180927,-1954.12,0.00059178,120]
[342810004,1732143180936,-1107.33,0.00059178,120]
[342810005,1732143180945,-5394.68,0.00059178,120]
[342810006,1732143180955,-500.0,0.00059178,120]
[342810007,1732143180964,-965.73,0.00059178,120]
[342810008,1732143180975,-500.0,0.00059178,120]
[342810009,1732143180984,-543.1,0.00059178,120]
[342810010,1732143180996,-1317.76,0.00059178,120]
[342810011,1732143181006,-594.46,0.00059178,120]
[342810012,1732143181015,-1617.12,0.00059178,120]
[342810013,1732143181025,-657.08,0.00059178,120]
[342810014,1732143181035,-628.07,0.00059178,120]
[342810015,1732143181045,-4865.56,0.00059178,120]